fUSD/lending_fUSD_20250111
["ID","MTS","AMOUNT","RATE_DAILY","PERIOD"]
[348502206,1736591448138,-500.0,9.999e-05,2]
[348502207,1736591448147,-500.0,9.999e-05,2]
[348502208,1736591448157,-500.0,9.999e-05,2]
[348502209,1736591448166,-500.0,9.999e-05,2]
[348502210,1736591448175,-500.0,9.999e-05,2]
[348502211,1736591448184,-500.0,9.999e-05,2]
[348502212,1736591448193,-500.0,9.999e-05,2]
[348502213,1736591448202,-500.0,9.999e-05,2]
[348502214,1736591448211,-518.04,9.999e-05,2]
[348502215,1736591448220,-500.0,9.999e-05,2]
[348502216,1736591448229,-500.0,9.999e-05,2]
[348502217,1736591448239,-500.0,9.999e-05,2]
[348502218,1736591448248,-500.0,9.999e-05,2]
[348502219,1736591448257,-500.0,9.999e-05,2]
[348502220,1736591448270,-500.0,9.999e-05,2]
[348502221,1736591448281,-395.1,9.999e-05,2]
[348502222,1736591448290,-500.0,9.999e-05,2]
[348502223,1736591448299,-2877.596476,9.999e-05,2]
[348502224,1736591448308,-500.0,9.999e-05,2]
[348502225,1736591448317,-500.0,9.999e-05,2]
[348502226,1736591448327,-500.0,9.999e-05,2]
[348502227,1736591448338,-500.0,9.999e-05,2]
[348502228,1736591448347,-500.0,9.999e-05,2]
[348502229,1736591448356,-414.19532557,9.999e-05,2]
[348502230,1736591448365,-500.0,9.999e-05,2]
[348502231,1736591448374,-500.0,9.999e-05,2]
[348502232,1736591448383,-2222.88,9.999e-05,2]
[348502233,1736591448392,-500.61985666,9.999e-05,2]
[348502234,1736591448401,-500.0,9.999e-05,2]
[348502235,1736591448410,-500.0,9.999e-05,2]
[348502236,1736591448419,-500.0,9.999e-05,2]
[348502237,1736591448428,-500.0,9.999e-05,2]
[348502238,1736591448438,-500.0,9.999e-05,2]
[348502239,1736591448447,-500.0,9.999e-05,2]
[348502240,1736591448457,-500.0,9.999e-05,2]
[348502241,1736591448466,-500.0,9.999e-05,2]
[348502242,1736591448475,-500.0,9.999e-05,2]
[348502243,1736591448484,-500.0,9.999e-05,2]
[348502244,1736591448494,-500.0,9.999e-05,2]
[348502245,1736591448503,-500.0,9.999e-05,2]
[348502246,1736591448511,-500.0,9.999e-05,2]
[348502247,1736591448521,-500.0,9.999e-05,2]
[348502248,1736591448530,-406.26897167,9.999e-05,2]
[348502249,1736591448539,-500.0,9.999e-05,2]
[348502250,1736591448548,-500.0,9.999e-05,2]
[348502251,1736591448557,-500.0,9.999e-05,2]
[348502252,1736591448566,-500.0,9.999e-05,2]
[348502253,1736591448575,-500.0,9.999e-05,2]
[348502254,1736591448584,-500.0,9.999e-05,2]
[348502255,1736591448593,-500.0,9.999e-05,2]
[348502256,1736591448603,-500.0,9.999e-05,2]
[348502257,1736591448612,-500.0,9.999e-05,2]
[348502258,1736591448622,-497.72926861,9.999e-05,2]
[348502259,1736591448631,-500.0,9.999e-05,2]
[348502260,1736591448641,-500.0,9.999e-05,2]
[348502261,1736591448650,-500.0,9.999e-05,2]
[348502262,1736591448660,-500.0,9.999e-05,2]
[348502263,1736591448669,-500.0,9.999e-05,2]
[348502264,1736591448678,-500.0,9.999e-05,2]
[348502265,1736591448687,-500.0,9.999e-05,2]
[348502266,1736591448696,-500.0,9.999e-05,2]
[348502267,1736591448705,-500.0,9.999e-05,2]
[348502268,1736591448714,-500.0,9.999e-05,2]
[348502269,1736591448723,-500.0,9.999e-05,2]
[348502270,1736591448732,-572.76,9.999e-05,2]
[348502271,1736591448741,-500.0,9.999e-05,2]
[348502272,1736591448750,-638.64,9.999e-05,2]
[348502273,1736591448760,-500.0,9.999e-05,2]
[348502274,1736591448769,-500.0,9.999e-05,2]
[348502275,1736591448779,-2238.1,9.999e-05,2]
[348502276,1736591448788,-500.0,9.999e-05,2]
[348502277,1736591448797,-516.40983848,9.999e-05,2]
[348502278,1736591448807,-500.0,9.999e-05,2]
[348502279,1736591448816,-500.0,9.999e-05,2]
[348502280,1736591448825,-395.82053035,9.999e-05,2]
[348502281,1736591448834,-500.0,9.999e-05,2]
[348502282,1736591448844,-501.71345718,9.999e-05,2]
[348502283,1736591448853,-500.0,9.999e-05,2]
[348502284,1736591448863,-500.0,9.999e-05,2]
[348502285,1736591448872,-500.0,9.999e-05,2]
[348502286,1736591448882,-500.0,9.999e-05,2]
[348502287,1736591448891,-500.0,9.999e-05,2]
[348502288,1736591448904,-500.0,9.999e-05,2]
[348502289,1736591448913,-500.0,9.999e-05,2]
[348502290,1736591448923,-500.0,9.999e-05,2]
[348502291,1736591448932,-500.0,9.999e-05,2]
[348502292,1736591448942,-500.0,9.999e-05,2]
[348502293,1736591448951,-500.0,9.999e-05,2]
[348502294,1736591448961,-500.0,9.999e-05,2]
[348502295,1736591448971,-513.05,9.999e-05,2]
[348502296,1736591448981,-500.0,9.999e-05,2]
[348502297,1736591448990,-500.0,9.999e-05,2]
[348502298,1736591449000,-500.0,9.999e-05,2]
[348502299,1736591449010,-500.0,9.999e-05,2]
[348502300,1736591449019,-500.0,9.999e-05,2]
[348502301,1736591449028,-500.0,9.999e-05,2]
[348502302,1736591449038,-500.0,9.999e-05,2]
[348502303,1736591449047,-500.0,9.999e-05,2]
[348502304,1736591449057,-500.0,9.999e-05,2]
[348502305,1736591449067,-866.77,9.999e-05,2]
[348502306,1736591449075,-500.0,9.999e-05,2]
[348502307,1736591449084,-500.0,9.999e-05,2]
[348502308,1736591449093,-500.0,9.999e-05,2]
[348502309,1736591449103,-500.0,9.999e-05,2]
[348502310,1736591449112,-500.0,9.999e-05,2]
[348502311,1736591449121,-517.0,9.999e-05,2]
[348502312,1736591449130,-500.0,9.999e-05,2]
[348502313,1736591449140,-500.0,9.999e-05,2]
[348502314,1736591449149,-598.46,9.999e-05,2]
[348502315,1736591449159,-500.0,9.999e-05,2]
[348502316,1736591449168,-500.0,9.999e-05,2]
[348502317,1736591449177,-500.0,9.999e-05,2]
[348502318,1736591449187,-1009.27,9.999e-05,2]
[348502319,1736591449196,-500.0,9.999e-05,2]
[348502320,1736591449205,-500.0,9.999e-05,2]
[348502321,1736591449215,-500.0,9.999e-05,2]
[348502322,1736591449224,-500.0,9.999e-05,2]
[348502323,1736591449233,-500.0,9.999e-05,2]
[348502324,1736591449243,-567.0,9.999e-05,2]
[348502325,1736591449252,-500.0,9.999e-05,2]
[348502326,1736591449261,-500.0,9.999e-05,2]
[348502327,1736591449270,-1322.76,9.999e-05,2]
[348502328,1736591449280,-500.0,9.999e-05,2]
[348502329,1736591449289,-500.0,9.999e-05,2]
[348502330,1736591449298,-510.73383517,9.999e-05,2]
[348502331,1736591449307,-500.0,9.999e-05,2]
[348502332,1736591449317,-500.0,9.999e-05,2]
[348502333,1736591449330,-500.0,9.999e-05,2]
[348502334,1736591449340,-2130.03,9.999e-05,2]
[348502335,1736591449350,-500.0,9.999e-05,2]
[348502336,1736591449361,-500.0,9.999e-05,2]
[348502337,1736591449371,-743.19,9.999e-05,2]
[348502338,1736591449381,-500.0,9.999e-05,2]
[348502339,1736591449391,-500.0,9.999e-05,2]
[348502340,1736591449400,-500.0,9.999e-05,2]
[348502341,1736591449411,-549.12,9.999e-05,2]
[348502342,1736591449421,-1221.92,9.999e-05,2]
[348502343,1736591449432,-918.48,9.999e-05,2]
[348502344,1736591449442,-500.0,9.999e-05,2]
[348502345,1736591449452,-500.0,9.999e-05,2]
[348502346,1736591449462,-500.0,9.999e-05,2]
[348502347,1736591449473,-500.0,9.999e-05,2]
[348502348,1736591449483,-1245.47,9.999e-05,2]
[348502349,1736591449494,-500.0,9.999e-05,2]
[348502350,1736591449504,-1303.9,9.999e-05,2]
[348502351,1736591449513,-160.16,9.999e-05,2]
[348502352,1736591449523,-535.04,9.999e-05,2]
[348502353,1736591449532,-2415.45,9.999e-05,2]
[348502354,1736591449542,-500.0,9.999e-05,2]
[348502355,1736591449552,-889.54,9.999e-05,2]
[348502356,1736591449562,-500.0,9.999e-05,2]
[348502357,1736591449572,-500.0,9.999e-05,2]
[348502358,1736591449582,-500.0,9.999e-05,2]
[348502359,1736591449592,-799.78,9.999e-05,2]
[348502360,1736591449602,-513.12,9.999e-05,2]
[348502361,1736591449612,-500.0,9.999e-05,2]
[348502362,1736591449622,-500.0,9.999e-05,2]
[348502363,1736591449811,-500.0,9.999e-05,2]
[348502364,1736591449822,-500.0,9.999e-05,2]
[348502365,1736591449832,-500.0,9.999e-05,2]
[348502366,1736591449842,-1000.0,0.0001,2]
[348502367,1736591449851,-540734.85792758,0.0001,2]
[348502368,1736591449874,-3371.0,0.0001,2]
[348502369,1736591450328,-779.15,9.893e-05,2]
[348502370,1736591450337,-254.07,9.997e-05,2]
[348502371,1736591450347,-500.0,9.997e-05,2]
[348502372,1736591450356,-1100.68,9.999e-05,2]
[348502373,1736591450365,-2089.12184683,0.0001,2]
[348502374,1736591450376,-4702.6365,0.0001,2]
[348502375,1736591450387,-2020.34821804,0.0001,2]
[348502376,1736591450398,-10936.1927267,0.0001,2]
[348502377,1736591450409,-813.443994,0.0001,2]
[348502378,1736591450420,-340110.08000255,0.0001,2]
[348502379,1736591450431,-401.63840562,0.0001,2]
[348502380,1736591450480,-203480.60484527,0.0001,2]
[348502381,1736591450491,-4287.44953285,0.0001,2]
[348502382,1736591450502,-51197.54228781,0.0001,2]
[348502383,1736591567198,7630.52,9.06e-05,2]
[348502384,1736591880847,250.0,8.857e-05,2]
[348502386,1736592028683,1000.0,8.847e-05,2]
[348502387,1736592177049,829.79,8.219e-05,2]
[348502388,1736592211139,1000.0,0.0002,120]
[348502389,1736592213053,1000.0,0.0002,120]
[348502390,1736592213940,1000.0,0.0002,120]
[348502391,1736592214633,1000.0,0.0002,120]
[348502392,1736592215233,1000.0,0.0002,120]
[348502393,1736592215932,1000.0,0.0002,120]
[348502394,1736592220521,1000.0,0.0002,120]
[348502395,1736592221253,1000.0,0.0002,120]
[348502396,1736592241408,325.22,8.838e-05,2]
[348502397,1736592324822,168.64,8.833e-05,2]
[348502409,1736592631781,-216.869,9.5e-05,2]
[348502411,1736592631791,-150.0,9.605e-05,2]
[348502413,1736592631800,-150.0,9.62e-05,2]
[348502415,1736592631810,-28901.43261134,9.642e-05,2]
[348502417,1736592631819,-150.0,9.642e-05,2]
[348502419,1736592631829,-150.0,9.649e-05,2]
[348502421,1736592631839,-150.0,9.656e-05,2]
[348502423,1736592631848,-500.0,9.664e-05,2]
[348502425,1736592631859,-150.0,9.687e-05,2]
[348502426,1736592631876,-150.0,9.689e-05,2]
[348502427,1736592631887,-1005.0,9.7e-05,2]
[348502428,1736592631896,-150.0,9.707e-05,2]
[348502429,1736592631905,-150.0,9.724e-05,2]
[348502430,1736592631914,-150.0,9.734e-05,2]
[348502431,1736592631924,-150.0,9.743e-05,2]
[348502432,1736592631933,-150.0,9.745e-05,2]
[348502433,1736592631943,-150.0,9.748e-05,2]
[348502434,1736592631952,-150.0,9.76e-05,2]
[348502435,1736592631961,-150.0,9.761e-05,2]
[348502436,1736592631970,-150.0,9.762e-05,2]
[348502437,1736592631979,-150.0,9.764e-05,2]
[348502438,1736592631989,-150.0,9.767e-05,2]
[348502439,1736592631998,-150.0,9.773e-05,2]
[348502440,1736592632008,-150.0,9.775e-05,2]
[348502441,1736592632017,-150.0,9.783e-05,2]
[348502442,1736592632026,-150.0,9.787e-05,2]
[348502443,1736592632036,-150.0,9.788e-05,2]
[348502444,1736592632046,-150.0,9.788e-05,2]
[348502445,1736592632055,-150.0,9.79e-05,2]
[348502446,1736592632065,-150.0,9.794e-05,2]
[348502447,1736592632074,-150.0,9.803e-05,2]
[348502448,1736592632083,-150.0,9.803e-05,2]
[348502449,1736592632092,-150.0,9.824e-05,2]
[348502450,1736592632101,-150.0,9.827e-05,2]
[348502451,1736592632110,-150.0,9.828e-05,2]
[348502452,1736592632119,-150.0,9.83e-05,2]
[348502453,1736592632128,-150.0,9.834e-05,2]
[348502454,1736592632137,-150.0,9.838e-05,2]
[348502455,1736592632146,-150.0,9.855e-05,2]
[348502456,1736592632155,-150.0,9.864e-05,2]
[348502457,1736592632164,-150.0,9.864e-05,2]
[348502458,1736592632174,-150.0,9.873e-05,2]
[348502459,1736592632183,-150.0,9.88e-05,2]
[348502460,1736592632193,-500.0,9.893e-05,2]
[348502461,1736592632202,-500.0,9.893e-05,2]
[348502462,1736592632211,-500.0,9.893e-05,2]
[348502463,1736592632220,-748.59,9.893e-05,2]
[348502464,1736592632229,-500.0,9.893e-05,2]
[348502465,1736592632238,-854.53,9.893e-05,2]
[348502466,1736592632246,-1438.86,9.893e-05,2]
[348502467,1736592632255,-1371.78,9.893e-05,2]
[348502468,1736592632264,-123.73551866,9.893e-05,2]
[348502469,1736592632276,-479.81448134,9.893e-05,2]
[348502470,1736592632285,-20.22691192,9.893e-05,2]
[348502471,1736592632296,-356.15532581,9.893e-05,2]
[348502472,1736592632306,-123.61776227,9.893e-05,2]
[348502473,1736592632315,-500.0,9.893e-05,2]
[348502474,1736592632324,-927.17,9.893e-05,2]
[348502476,1736592632333,-3040.32,9.893e-05,2]
[348502478,1736592632343,-1000.0,9.894e-05,2]
[348502480,1736592632352,-539.93,9.894e-05,2]
[348502482,1736592632361,-500.0,9.894e-05,2]
[348502484,1736592632370,-1455.22,9.894e-05,2]
[348502486,1736592632379,-1628.1482,9.897e-05,2]
[348502487,1736592632388,-7503.0,9.898e-05,2]
[348502489,1736592632397,-1500.0,9.923e-05,2]
[348502491,1736592632406,-150.42744298,9.93e-05,2]
[348502493,1736592632415,-150.0,9.93e-05,2]
[348502495,1736592632424,-160.02905611,9.937e-05,2]
[348502497,1736592632433,-168.64,9.937e-05,2]
[348502499,1736592632442,-150.0,9.944e-05,2]
[348502501,1736592632451,-1000.0,9.953e-05,2]
[348502503,1736592632460,-150.0,9.965e-05,2]
[348502505,1736592632471,-500.0,9.973e-05,2]
[348502507,1736592632480,-159.83968,9.973e-05,2]
[348502509,1736592632489,-160.838678,9.973e-05,2]
[348502511,1736592632498,-150.848698,9.973e-05,2]
[348502513,1736592632507,-150.0,9.973e-05,2]
[348502515,1736592632516,-669.416,9.993e-05,2]
[348502517,1736592632525,-150.0,9.994e-05,2]
[348502519,1736592632534,-1156.41,9.996e-05,2]
[348502521,1736592632543,-500.0,9.996e-05,2]
[348502523,1736592632552,-500.0,9.996e-05,2]
[348502525,1736592632562,-1349.55,9.996e-05,2]
[348502527,1736592632571,-500.0,9.996e-05,2]
[348502529,1736592632579,-555.42,9.996e-05,2]
[348502531,1736592632588,-948.27,9.996e-05,2]
[348502533,1736592632597,-500.0,9.996e-05,2]
[348502535,1736592632606,-593.02,9.996e-05,2]
[348502536,1736592632615,-805.35,9.996e-05,2]
[348502537,1736592632624,-578.98269866,9.996e-05,2]
[348502538,1736592632635,-1088.93730134,9.996e-05,2]
[348502539,1736592632645,-500.0,9.996e-05,2]
[348502540,1736592632653,-583.27,9.996e-05,2]
[348502541,1736592632662,-500.0,9.996e-05,2]
[348502542,1736592632672,-500.0,9.996e-05,2]
[348502543,1736592632681,-500.0,9.996e-05,2]
[348502544,1736592632690,-150.0,9.996e-05,2]
[348502545,1736592632699,-1264.01,9.996e-05,2]
[348502546,1736592632708,-719.399119,9.997e-05,2]
[348502547,1736592632717,-552.383137,9.997e-05,2]
[348502549,1736592632727,-2222.88,9.997e-05,2]
[348502551,1736592632736,-500.0,9.997e-05,2]
[348502553,1736592632744,-500.0,9.997e-05,2]
[348502555,1736592632753,-500.0,9.997e-05,2]
[348502557,1736592632763,-500.0,9.997e-05,2]
[348502559,1736592632771,-500.0,9.997e-05,2]
[348502561,1736592632781,-500.0,9.997e-05,2]
[348502562,1736592632790,-406.72044266,9.997e-05,2]
[348502565,1736592632823,-93.27955734,9.997e-05,2]
[348502566,1736592632833,-167.70408266,9.997e-05,2]
[348502567,1736592632842,-132.13726275,9.997e-05,2]
[348502568,1736592632853,-367.86273725,9.997e-05,2]
[348502569,1736592632864,-1293.61294276,9.997e-05,2]
[348502570,1736592632880,-473.45362311,9.997e-05,2]
[348502571,1736592632892,-471.03343413,9.997e-05,2]
[348502572,1736592632903,-500.0,9.997e-05,2]
[348502573,1736592632914,-500.0,9.997e-05,2]
[348502574,1736592632924,-500.0,9.997e-05,2]
[348502575,1736592632934,-500.0,9.997e-05,2]
[348502576,1736592632946,-500.0,9.997e-05,2]
[348502577,1736592632957,-581.30192603,9.997e-05,2]
[348502578,1736592632966,-500.0,9.997e-05,2]
[348502579,1736592632976,-500.0,9.997e-05,2]
[348502580,1736592632985,-501.22629495,9.997e-05,2]
[348502581,1736592632994,-500.0,9.997e-05,2]
[348502582,1736592633002,-500.0,9.997e-05,2]
[348502583,1736592633012,-500.0,9.997e-05,2]
[348502584,1736592633021,-500.0,9.997e-05,2]
[348502585,1736592633031,-500.0,9.997e-05,2]
[348502586,1736592633040,-500.0,9.997e-05,2]
[348502587,1736592633049,-503.46535919,9.997e-05,2]
[348502588,1736592633059,-35.862358,9.997e-05,2]
[348502589,1736592633071,-464.137642,9.997e-05,2]
[348502590,1736592633080,-500.0,9.997e-05,2]
[348502591,1736592633090,-500.0,9.997e-05,2]
[348502592,1736592633099,-500.0,9.997e-05,2]
[348502593,1736592633109,-500.0,9.997e-05,2]
[348502594,1736592633118,-500.0,9.997e-05,2]
[348502595,1736592633128,-120.78048918,9.997e-05,2]
[348502596,1736592633146,-379.21951082,9.997e-05,2]
[348502597,1736592633155,-500.0,9.997e-05,2]
[348502598,1736592633165,-500.0,9.997e-05,2]
[348502599,1736592633175,-500.0,9.997e-05,2]
[348502600,1736592633184,-500.0,9.997e-05,2]
[348502601,1736592633194,-430.72532477,9.997e-05,2]
[348502602,1736592633205,-87.31467523,9.997e-05,2]
[348502603,1736592633214,-500.0,9.997e-05,2]
[348502604,1736592633223,-500.0,9.997e-05,2]
[348502605,1736592633232,-66.55532477,9.997e-05,2]
[348502606,1736592633244,-89.41167923,9.997e-05,2]
[348502607,1736592633253,-395.1,9.997e-05,2]
[348502608,1736592633262,-500.0,9.997e-05,2]
[348502609,1736592633271,-202.4833196,9.997e-05,2]
[348502610,1736592633283,-297.5166804,9.997e-05,2]
[348502611,1736592633292,-500.0,9.997e-05,2]
[348502612,1736592633302,-500.0,9.997e-05,2]
[348502613,1736592633311,-500.0,9.997e-05,2]
[348502614,1736592633320,-500.0,9.997e-05,2]
[348502615,1736592633330,-500.0,9.997e-05,2]
[348502616,1736592633339,-500.0,9.997e-05,2]
[348502617,1736592633348,-500.0,9.997e-05,2]
[348502618,1736592633357,-500.0,9.997e-05,2]
[348502619,1736592633366,-500.0,9.997e-05,2]
[348502620,1736592633376,-500.0,9.997e-05,2]
[348502621,1736592633385,-500.0,9.997e-05,2]
[348502622,1736592633394,-500.0,9.997e-05,2]
[348502623,1736592633403,-500.0,9.997e-05,2]
[348502624,1736592633413,-500.0,9.997e-05,2]
[348502625,1736592633422,-500.61985666,9.997e-05,2]
[348502626,1736592633431,-500.0,9.997e-05,2]
[348502627,1736592633441,-500.0,9.997e-05,2]
[348502628,1736592633450,-500.0,9.997e-05,2]
[348502629,1736592633459,-500.0,9.997e-05,2]
[348502630,1736592633468,-229.76346294,9.997e-05,2]
[348502631,1736592633480,-270.23653706,9.997e-05,2]
[348502632,1736592633489,-500.0,9.997e-05,2]
[348502633,1736592633499,-500.0,9.997e-05,2]
[348502634,1736592633509,-500.0,9.997e-05,2]
[348502635,1736592633518,-500.0,9.997e-05,2]
[348502636,1736592633528,-500.0,9.997e-05,2]
[348502637,1736592633537,-500.0,9.997e-05,2]
[348502638,1736592633546,-500.0,9.997e-05,2]
[348502639,1736592633555,-500.0,9.997e-05,2]
[348502640,1736592633565,-500.0,9.997e-05,2]
[348502641,1736592633574,-500.0,9.997e-05,2]
[348502642,1736592633584,-500.0,9.997e-05,2]
[348502643,1736592633593,-289.70838634,9.997e-05,2]
[348502656,1736592637795,-500.0,9.996e-05,2]
[348502657,1736592637805,-330.7264,9.996e-05,2]
[348502658,1736592637818,-169.2736,9.996e-05,2]
[348502659,1736592637828,-210.29161366,9.997e-05,2]
[348502660,1736592637838,-866.77,9.997e-05,2]
[348502661,1736592637848,-500.0,9.997e-05,2]
[348502662,1736592637858,-500.0,9.997e-05,2]
[348502663,1736592637870,-500.0,9.997e-05,2]
[348502664,1736592637880,-500.0,9.997e-05,2]
[348502665,1736592637890,-500.0,9.997e-05,2]
[348502666,1736592637899,-497.72926861,9.997e-05,2]
[348502667,1736592637908,-500.0,9.997e-05,2]
[348502668,1736592637918,-500.0,9.997e-05,2]
[348502669,1736592637928,-500.0,9.997e-05,2]
[348502670,1736592637938,-500.0,9.997e-05,2]
[348502671,1736592637947,-500.0,9.997e-05,2]
[348502672,1736592637958,-500.0,9.997e-05,2]
[348502673,1736592637969,-500.0,9.997e-05,2]
[348502674,1736592637978,-500.0,9.997e-05,2]
[348502675,1736592637987,-414.19532557,9.997e-05,2]
[348502676,1736592637997,-500.0,9.997e-05,2]
[348502677,1736592638007,-598.46,9.997e-05,2]
[348502678,1736592638017,-500.0,9.997e-05,2]
[348502679,1736592638026,-500.0,9.997e-05,2]
[348502680,1736592638036,-406.26897167,9.997e-05,2]
[348502681,1736592638046,-500.0,9.997e-05,2]
[348502682,1736592638055,-500.0,9.997e-05,2]
[348502683,1736592638065,-572.76,9.997e-05,2]
[348502684,1736592638075,-500.0,9.997e-05,2]
[348502685,1736592638084,-500.0,9.997e-05,2]
[348502686,1736592638094,-395.82053035,9.997e-05,2]
[348502687,1736592638104,-500.0,9.997e-05,2]
[348502688,1736592638114,-500.0,9.997e-05,2]
[348502689,1736592638123,-500.0,9.997e-05,2]
[348502690,1736592638133,-500.0,9.997e-05,2]
[348502691,1736592638142,-500.0,9.997e-05,2]
[348502692,1736592638152,-500.0,9.997e-05,2]
[348502693,1736592638163,-516.40983848,9.997e-05,2]
[348502694,1736592638173,-500.0,9.997e-05,2]
[348502695,1736592638183,-500.0,9.997e-05,2]
[348502696,1736592638193,-500.0,9.997e-05,2]
[348502697,1736592638202,-500.0,9.997e-05,2]
[348502698,1736592638211,-500.0,9.997e-05,2]
[348502699,1736592638221,-500.0,9.997e-05,2]
[348502700,1736592638230,-638.64,9.997e-05,2]
[348502701,1736592638239,-500.0,9.997e-05,2]
[348502702,1736592638249,-500.0,9.997e-05,2]
[348502703,1736592638258,-500.0,9.997e-05,2]
[348502704,1736592638267,-500.0,9.997e-05,2]
[348502705,1736592638277,-500.0,9.997e-05,2]
[348502706,1736592638286,-500.0,9.997e-05,2]
[348502707,1736592638296,-500.0,9.997e-05,2]
[348502708,1736592638305,-513.05,9.997e-05,2]
[348502709,1736592638315,-500.0,9.997e-05,2]
[348502710,1736592638324,-500.0,9.997e-05,2]
[348502711,1736592638334,-501.71345718,9.997e-05,2]
[348502712,1736592638344,-500.0,9.997e-05,2]
[348502713,1736592638353,-500.0,9.997e-05,2]
[348502714,1736592638362,-500.0,9.997e-05,2]
[348502715,1736592638372,-500.0,9.997e-05,2]
[348502716,1736592638381,-500.0,9.997e-05,2]
[348502717,1736592638391,-500.0,9.997e-05,2]
[348502718,1736592638400,-500.0,9.997e-05,2]
[348502719,1736592638409,-500.0,9.997e-05,2]
[348502720,1736592638419,-500.0,9.997e-05,2]
[348502721,1736592638428,-500.0,9.997e-05,2]
[348502723,1736592638437,-500.0,9.997e-05,2]
[348502725,1736592638446,-500.0,9.997e-05,2]
[348502727,1736592638456,-500.0,9.997e-05,2]
[348502729,1736592638465,-517.0,9.997e-05,2]
[348502730,1736592638474,-500.0,9.997e-05,2]
[348502731,1736592638483,-500.0,9.997e-05,2]
[348502732,1736592638492,-500.0,9.997e-05,2]
[348502733,1736592638501,-500.0,9.997e-05,2]
[348502734,1736592638510,-500.0,9.997e-05,2]
[348502735,1736592638519,-500.0,9.997e-05,2]
[348502736,1736592638528,-939.32,9.997e-05,2]
[348502737,1736592638538,-500.0,9.997e-05,2]
[348502738,1736592638547,-500.0,9.997e-05,2]
[348502739,1736592638556,-500.0,9.997e-05,2]
[348502740,1736592638565,-500.0,9.997e-05,2]
[348502741,1736592638574,-500.0,9.997e-05,2]
[348502742,1736592638583,-500.0,9.997e-05,2]
[348502743,1736592638593,-500.0,9.997e-05,2]
[348502744,1736592638602,-500.0,9.997e-05,2]
[348502745,1736592638824,-500.0,9.997e-05,2]
[348502746,1736592638835,-500.0,9.997e-05,2]
[348502747,1736592638845,-1325.98,9.997e-05,2]
[348502748,1736592638856,-500.0,9.997e-05,2]
[348502749,1736592638868,-500.0,9.997e-05,2]
[348502750,1736592638879,-500.0,9.997e-05,2]
[348502751,1736592638888,-500.0,9.997e-05,2]
[348502752,1736592638898,-500.0,9.997e-05,2]
[348502753,1736592638908,-500.0,9.997e-05,2]
[348502754,1736592638919,-500.0,9.997e-05,2]
[348502755,1736592638928,-500.0,9.997e-05,2]
[348502756,1736592638938,-500.0,9.997e-05,2]
[348502757,1736592638948,-567.0,9.997e-05,2]
[348502758,1736592638957,-924.05,9.997e-05,2]
[348502759,1736592638967,-500.0,9.997e-05,2]
[348502760,1736592638977,-500.0,9.997e-05,2]
[348502761,1736592638986,-500.0,9.997e-05,2]
[348502762,1736592638996,-500.0,9.997e-05,2]
[348502763,1736592639005,-500.0,9.997e-05,2]
[348502764,1736592639014,-500.0,9.997e-05,2]
[348502765,1736592639025,-500.0,9.997e-05,2]
[348502766,1736592639035,-500.0,9.997e-05,2]
[348502767,1736592639047,-510.73383517,9.997e-05,2]
[348502768,1736592639056,-500.0,9.997e-05,2]
[348502769,1736592639066,-500.0,9.997e-05,2]
[348502770,1736592639076,-500.0,9.997e-05,2]
[348502771,1736592639085,-500.0,9.997e-05,2]
[348502772,1736592639095,-500.0,9.997e-05,2]
[348502773,1736592639105,-500.0,9.997e-05,2]
[348502774,1736592639114,-820.62,9.997e-05,2]
[348502775,1736592639124,-500.0,9.997e-05,2]
[348502776,1736592639135,-500.0,9.997e-05,2]
[348502777,1736592639144,-500.0,9.997e-05,2]
[348502778,1736592639153,-500.0,9.997e-05,2]
[348502779,1736592639162,-500.0,9.997e-05,2]
[348502780,1736592639172,-500.0,9.997e-05,2]